bitfinex-derivatives/quotes_ETHF0:USTF0_20260102
["timestamp","ask_amount","ask_price","bid_price","bid_amount"]
[1767370747528,0.00483411,3103.2,3101.8,0.00483411]
[1767370747730,0.82866435,3103.2,3101.8,0.00483411]
[1767370748831,0.16127,3102.7,3101.5,0.00258926]
[1767370749038,0.98510024,3102.6,3101.5,0.00258926]
[1767370750236,0.82383024,3102.6,3101.5,0.00258926]
[1767370750436,0.16125,3103.0,3101.5,0.00258926]
[1767370750739,0.82383024,3102.9,3101.5,0.00258926]
[1767370751136,0.82383024,3102.6,3101.5,0.00258926]
[1767370751633,0.98510024,3102.6,3101.5,0.00258926]
[1767370751836,0.98511024,3102.4,3101.5,0.00258926]
[1767370752041,0.82383024,3102.4,3101.5,0.00258926]
[1767370752626,0.82383024,3102.2,3098.8,2.83099163]
[1767370752830,0.82383024,3102.2,3100.3,0.16139]
[1767370753039,0.82383024,3102.9,3099.9,0.15715506]
[1767370753234,0.82383024,3102.9,3100.6,0.16137]
[1767370753433,0.16127,3102.6,3100.6,0.16137]
[1767370753629,0.82383024,3102.5,3100.6,0.16405726]
[1767370753835,0.00483411,3101.9,3101.2,0.00483411]
[1767370754338,0.82383024,3103.2,3101.2,6.00483411]
[1767370754530,0.98507024,3103.2,3101.3,0.16134]
[1767370754938,0.82383024,3103.2,3101.5,0.16132]
[1767370755240,0.82383024,3103.8,3102.0,0.1613]
[1767370755442,0.00483411,3103.1,3102.0,0.1613]
[1767370755640,0.82383024,3103.8,3102.0,0.1613]
[1767370755942,0.82383024,3103.8,3102.1,0.16129]
[1767370756238,0.82760717,3103.6,3101.7,0.16132]
[1767370756642,0.00483411,3103.0,3101.7,0.16132]
[1767370757036,0.00483411,3103.0,3101.8,0.16131]
[1767370757831,0.82866435,3103.0,3101.2,0.00483411]
[1767370758041,0.82866435,3103.0,3101.3,3.225]
[1767370758442,0.00483411,3103.0,3101.4,4.19005544]
[1767370758642,0.82383024,3103.5,3101.9,0.16131]
[1767370759245,0.82383024,3103.5,3101.9,3.38631]
[1767370759443,0.82383024,3103.5,3101.4,4.19005544]
[1767370759648,0.00483411,3102.8,3101.7,3.225]
[1767370759839,0.00483411,3102.8,3101.6,3.225]
[1767370760037,0.82866435,3102.8,3101.3,4.21718121]
[1767370760340,0.98992435,3102.8,3101.2,0.00483411]
[1767370760738,0.98511024,3102.6,3101.2,0.00483411]
[1767370762140,0.82383024,3102.4,3101.2,0.00483411]
[1767370762342,0.98511024,3102.4,3101.2,0.00483411]
[1767370762648,0.82383024,3102.2,3101.2,0.00483411]
[1767370763550,0.98512024,3102.2,3100.6,0.00268726]
[1767370763842,0.82383024,3101.9,3100.6,0.00268726]
[1767370764251,0.82383024,3102.5,3100.6,0.00268726]
[1767370764441,0.82383024,3102.3,3100.6,0.00268726]
[1767370764640,0.82383024,3102.3,3101.1,0.00483411]
[1767370765245,0.82383024,3102.2,3101.1,0.00483411]
[1767370768849,0.98247427,3102.0,3100.6,0.00268726]
[1767370769049,0.82117427,3102.0,3100.6,0.00268726]
[1767370769650,0.82117427,3102.0,3100.6,0.16405726]
[1767370769851,0.82117427,3102.0,3101.0,0.00483411]
[1767370770249,0.82117427,3102.6,3101.0,0.00483411]
[1767370770852,0.82117427,3102.6,3101.2,0.16134]
[1767370772752,0.82117427,3102.6,3101.0,0.00483411]
[1767370774149,0.98247427,3102.2,3101.0,0.00483411]
[1767370774346,0.82117427,3101.9,3101.0,0.00483411]
[1767370774545,0.82117427,3101.6,3100.6,0.00268726]
[1767370775367,0.82117427,3101.6,3099.9,0.16141]
[1767370775663,0.00483411,3101.1,3100.4,0.00483411]
[1767370776455,0.8296527,3101.1,3100.4,0.00678561]
[1767370776662,0.8296527,3101.1,3099.5,0.16143]
[1767370776960,0.8296527,3101.1,3099.6,0.16143]
[1767370777166,0.00847843,3101.1,3099.6,4.13731943]
[1767370777466,0.00847843,3101.1,3099.2,0.19967361]
[1767370777668,0.82117427,3101.7,3099.4,1.39908927]
[1767370777870,0.82117427,3101.7,3100.3,0.16139]
[1767370778973,0.00483411,3101.3,3100.7,0.00483411]
[1767370781668,0.82600838,3101.3,3099.9,3.226]
[1767370782270,0.82600838,3101.3,3100.0,4.16203068]
[1767370782565,0.00483411,3101.3,3100.1,0.1614]
[1767370783668,0.00483411,3101.3,3099.9,3.226]
[1767370783873,0.82117427,3102.4,3100.9,0.16136]
[1767370784069,0.82117427,3102.4,3101.1,0.16134]
[1767370784264,0.82117427,3102.4,3100.9,4.45]
[1767370784265,0.82117427,3102.4,3101.2,0.16134]
[1767370784572,0.82117427,3102.2,3100.4,7.676]
[1767370784759,0.82117427,3102.2,3101.0,0.00483411]
[1767370784760,0.00483411,3101.6,3101.0,0.00483411]
[1767370785071,0.82432331,3102.2,3101.0,0.00483411]
[1767370785969,0.00314904,3102.2,3101.0,0.16618411]
[1767370786170,0.00314904,3102.2,3101.1,0.16135]
[1767370787072,0.00363533,3101.9,3101.0,0.00483411]
[1767370787464,0.8248096,3101.9,3101.0,0.00483411]
[1767370787664,0.82117427,3101.9,3101.0,0.00483411]
[1767370787865,0.8248096,3101.9,3101.0,0.00483411]
[1767370788067,0.82117427,3101.9,3101.0,0.00483411]
[1767370788464,0.8248096,3101.9,3101.0,0.00483411]
[1767370788965,0.82117427,3101.9,3101.0,0.00483411]
[1767370789169,0.8248096,3101.9,3101.0,0.00483411]
[1767370790870,0.9861196,3101.9,3100.4,3.226]
[1767370791967,0.9861196,3101.9,3100.8,0.00483411]
[1767370792166,0.82117427,3101.7,3100.0,0.16141]
[1767370792769,0.8248096,3101.7,3100.0,0.16141]
[1767370793372,0.8248096,3101.7,3100.5,0.00483411]
[1767370794369,0.82117427,3101.1,3099.3,3.38744]
[1767370794573,0.82117427,3101.1,3099.3,0.16144]
[1767370794774,0.8248096,3101.1,3099.2,3.99201095]
[1767370794970,0.8248096,3101.1,3099.2,0.00364073]
[1767370795570,0.82117427,3100.4,3099.2,0.00364073]
[1767370795878,0.82600838,3100.1,3099.2,0.00364073]
[1767370796768,0.82964371,3100.1,3099.2,0.00364073]
[1767370799874,0.99104371,3100.1,3098.2,0.1615]
[1767370800073,0.98740838,3100.1,3098.2,0.1615]
[1767370800275,0.84394644,3099.7,3098.3,3.227]
[1767370800573,1.00536644,3099.7,3098.3,3.227]
[1767370800774,1.00900177,3099.7,3098.3,3.227]
[1767370801074,1.00900177,3099.7,3098.3,3.23037592]
[1767370801075,0.00322214,3099.7,3098.3,3.23037592]
[1767370801272,0.00322214,3099.7,3098.5,0.16148]
[1767370801473,0.00483411,3100.1,3098.8,0.16147]
[1767370801776,0.84878055,3100.1,3098.9,4.449]
[1767370802178,0.84878055,3100.1,3098.8,0.16147]
[1767370802482,0.84394644,3101.2,3099.4,0.16143]
[1767370802681,0.84394644,3101.2,3099.5,7.677]
[1767370802982,0.84394644,3101.2,3099.6,4.45]
[1767370803277,0.84394644,3101.2,3099.6,4.11076329]
[1767370803476,0.00483411,3100.7,3100.1,0.00483411]
[1767370803881,0.00846944,3100.7,3100.1,0.00483411]
[1767370804078,4.11e-06,3100.7,3100.1,0.00483411]
[1767370804269,0.00336647,3101.2,3100.1,6.00483411]
[1767370804476,0.00336647,3101.2,3100.2,7.677]
[1767370804681,0.00336647,3101.2,3100.1,0.00483411]
[1767370804981,0.00336647,3101.2,3100.2,7.677]
[1767370805176,0.84758177,3100.9,3100.1,0.00483411]
[1767370805478,0.84394644,3100.7,3099.5,4.45]
[1767370805678,0.00483411,3100.8,3099.6,4.45]
[1767370805977,0.00483411,3100.8,3099.6,4.61142]
[1767370806177,0.00483411,3100.8,3099.6,0.16142]
[1767370806380,0.00483411,3100.8,3099.9,0.00483411]
[1767370807375,0.85241588,3100.8,3100.0,4.451]
[1767370807575,0.85241588,3100.8,3100.1,4.451]
[1767370807776,0.84878055,3100.8,3100.1,4.451]
[1767370807978,0.85241588,3100.8,3100.1,4.451]
[1767370808385,0.85241588,3100.8,3099.9,0.00483411]
[1767370808585,0.84878055,3100.8,3100.0,4.451]
[1767370808772,0.00363533,3101.1,3100.4,0.16138]
[1767370809079,0.84394644,3102.0,3100.4,0.16138]
[1767370809276,0.84394644,3101.7,3099.9,0.00483411]
[1767370809481,0.84394644,3101.7,3100.1,4.451]
[1767370809787,0.00483411,3101.2,3099.9,0.00483411]
[1767370810085,0.84878055,3101.2,3100.1,4.451]
[1767370810488,0.84878055,3101.2,3099.9,0.00483411]
[1767370810684,0.00363533,3100.9,3100.0,4.451]
[1767370811581,0.84758177,3100.9,3099.9,0.00483411]
[1767370812780,0.84758177,3100.9,3098.7,1.2351839]
[1767370812781,0.84394644,3100.6,3098.3,3.99174614]
[1767370812984,0.84394644,3100.4,3098.8,0.16147]
[1767370813877,0.84394644,3100.4,3099.3,0.00483411]
[1767370814279,0.84758177,3100.3,3099.3,0.00483411]
[1767370814584,0.00363533,3100.3,3099.4,4.452]
[1767370814777,0.84394644,3100.8,3099.4,4.452]
[1767370815077,0.84394644,3100.8,3099.5,4.452]
[1767370815580,0.84394644,3100.8,3099.6,0.16143]
[1767370816983,0.00483411,3101.2,3099.9,1.3965939]
[1767370817183,0.84394644,3101.4,3100.0,0.1614]
[1767370817484,0.84394644,3101.4,3100.0,4.37601936]
[1767370817887,0.00257858,3101.7,3100.3,0.16139]
[1767370818083,0.00257858,3101.7,3100.4,4.452]
[1767370818384,0.84394644,3102.5,3101.2,0.16134]
[1767370818588,0.84394644,3103.2,3101.5,0.16132]
[1767370818783,0.84394644,3103.0,3101.6,4.452]
[1767370818986,0.84394644,3103.0,3101.1,0.16135]
[1767370819190,0.00483411,3102.4,3101.7,0.00483411]
[1767370821082,0.84878055,3102.4,3100.8,3.98837022]
[1767370821289,0.84878055,3102.4,3100.8,8.44237022]
[1767370822186,0.84878055,3102.4,3101.3,0.00483411]
[1767370822482,1.01006055,3102.4,3101.3,0.00483411]
[1767370822787,1.00525644,3101.9,3100.8,3.99175492]
[1767370822990,0.16132,3101.8,3100.8,0.79616385]
[1767370823383,0.16132,3101.8,3100.8,0.0033847]
[1767370823689,1.2351839,3101.7,3099.4,0.84078919]
[1767370823884,1.2351839,3101.2,3099.4,0.84078919]
[1767370824382,0.16038,3100.5,3098.9,1.517]
[1767370824585,0.16139,3100.3,3098.5,0.84078919]
[1767370824888,0.00483411,3099.8,3098.6,0.84078919]
[1767370825081,0.00483411,3099.8,3098.9,0.84078919]
[1767370825291,0.00483411,3099.8,3098.5,4.45736701]
[1767370825483,0.00483411,3099.8,3098.5,0.00336701]
[1767370826083,0.16144,3099.3,3098.5,0.00336701]
[1767370826288,0.16145,3099.2,3097.7,0.8462874]
[1767370826681,0.16146,3098.9,3097.1,0.85395485]
[1767370826990,1.2351839,3099.3,3097.1,0.85395485]
[1767370827193,1.2351839,3099.3,3097.1,0.85728123]
[1767370827390,3.227,3099.2,3097.1,0.85728123]
[1767370827989,0.16144,3099.3,3097.1,0.85728123]
[1767370828185,0.16146,3099.0,3097.1,0.85728123]
[1767370828891,0.16146,3098.9,3097.1,0.85728123]
[1767370830089,0.16146,3098.9,3097.3,0.85395485]
[1767370830393,0.16143,3099.5,3097.3,0.85395485]
[1767370831582,0.16143,3099.5,3097.5,0.85395485]
[1767370831786,0.16143,3099.5,3097.6,0.85395485]
[1767370832300,0.16143,3099.5,3097.7,0.85395485]
[1767370832587,0.16143,3099.5,3097.8,0.85395485]
[1767370832787,0.16143,3099.5,3097.9,0.85395485]
[1767370833997,0.48402,3099.7,3098.0,0.85395485]
[1767370834794,0.48402,3099.7,3098.1,6.56086956]
[1767370835095,0.48402,3099.7,3098.2,0.85395485]
[1767370835997,0.48402,3099.7,3098.3,0.85395485]
[1767370837100,0.16143,3099.6,3098.3,0.85395485]
[1767370837902,0.16143,3099.5,3098.3,0.85395485]
[1767370838200,0.16144,3099.3,3098.3,0.85395485]
[1767370838400,0.16144,3099.3,3097.2,0.85395485]
[1767370838594,0.16144,3099.3,3097.3,0.85395485]
[1767370838987,0.16144,3099.3,3097.7,0.85395485]
[1767370839192,0.16147,3098.9,3097.7,0.85395485]
[1767370839493,0.16149,3098.5,3097.1,0.85728123]
[1767370839695,40.8,3099.6,3097.7,0.85395485]
[1767370839897,0.93781302,3099.5,3097.7,0.85395485]
[1767370840096,44.192,3099.6,3097.7,0.85395485]
[1767370840400,0.16146,3098.9,3097.7,0.85395485]
[1767370840590,0.9378151,3099.5,3097.1,0.85728123]
[1767370840591,0.16147,3098.8,3097.1,0.85728123]
[1767370840893,0.00484215,3098.3,3097.7,0.00484215]
[1767370841790,0.16144,3099.3,3097.7,0.858797]
[1767370841989,0.16146,3099.0,3097.7,0.858797]
[1767370842493,41.1226,3099.7,3097.8,5.70691471]
[1767370842693,0.16148,3098.6,3097.7,0.00484215]
[1767370842900,0.16148,3098.5,3097.7,0.00484215]
[1767370843594,0.00484215,3099.1,3097.7,0.00484215]
[1767370843796,0.94830882,3099.0,3097.1,0.85728123]
[1767370843994,0.16149,3098.4,3097.2,0.85395485]
[1767370844194,0.00484215,3099.1,3097.2,0.85395485]
[1767370844397,0.16147,3098.8,3097.2,0.85395485]
[1767370844587,0.16147,3098.7,3097.2,0.85395485]
[1767370844790,0.16149,3098.4,3097.6,0.00484215]
[1767370844994,3.231,3098.8,3097.1,0.00332638]
[1767370845196,0.16151,3098.1,3097.1,0.00332638]
[1767370845396,0.16535921,3098.1,3097.1,0.85728123]
[1767370845698,0.16535921,3098.1,3097.5,5.70691471]
[1767370846205,0.16535921,3098.1,3097.1,0.85728123]
[1767370846391,0.16535921,3098.1,3097.3,5.70691471]
[1767370846801,0.16535921,3098.1,3097.1,0.85728123]
[1767370846996,0.16535921,3098.1,3097.2,5.70691471]
[1767370847890,0.00384921,3098.1,3097.3,0.85395485]
[1767370848095,0.16148,3098.7,3097.3,0.85395485]
[1767370849196,0.16557406,3098.7,3097.3,0.85395485]
[1767370849596,0.00409406,3098.7,3097.3,0.85395485]
[1767370849905,0.00409406,3098.7,3097.4,0.85395485]
[1767370850099,0.00409406,3098.7,3097.5,0.16154]
[1767370850307,0.00409406,3098.7,3097.6,0.85395485]
[1767370851099,0.00409406,3098.7,3097.6,1.01548485]
[1767370852198,0.00484215,3099.1,3097.6,1.01548485]
[1767370852706,0.3226,3099.0,3097.6,1.01548485]
[1767370853307,0.32615876,3099.0,3097.6,1.01548485]
[1767370854296,0.32615876,3099.0,3097.8,1.01547485]
[1767370855108,0.32615876,3099.0,3098.0,0.85395485]
[1767370855405,0.16141,3100.1,3098.0,0.85395485]
[1767370855711,0.9546781,3100.0,3098.4,0.85395485]
[1767370856008,0.16138,3100.6,3098.6,0.85395485]
[1767370856215,0.9545987,3100.5,3098.8,0.89076952]
[1767370856398,0.9545987,3100.5,3098.7,0.16147]
[1767370856399,0.9545987,3100.4,3099.0,0.89076952]
[1767370856597,0.00484215,3100.0,3099.3,0.89561167]
[1767370856809,0.00263127,3100.5,3099.3,0.89829956]
[1767370858011,0.00484215,3100.2,3099.3,0.89829956]
[1767370859600,0.00484215,3100.2,3098.2,1.05226952]
[1767370860605,0.16141,3099.9,3098.2,1.05226952]
[1767370860806,0.16141,3099.9,3098.9,0.00484215]
[1767370861103,0.9522187,3099.8,3098.2,0.89426688]
[1767370861302,0.00484215,3100.2,3098.2,0.89426688]
[1767370861502,0.16143,3099.6,3098.2,0.89426688]
[1767370861712,7.545,3100.1,3098.2,0.89426688]
[1767370861913,0.16144,3099.5,3098.2,0.89426688]
[1767370862113,0.16144,3099.4,3098.2,0.89426688]
[1767370862607,0.16144,3099.4,3098.6,0.89076952]
[1767370862813,0.16144,3099.4,3098.5,5.70691471]
[1767370864707,0.16141,3100.0,3098.6,0.89076952]
[1767370864908,0.16141,3100.0,3098.7,0.89076952]
[1767370865712,0.00484215,3100.2,3098.7,0.89076952]
[1767370866601,0.00484215,3100.2,3099.0,0.89076952]
[1767370867311,0.00263127,3100.5,3099.0,1.05222952]
[1767370868511,0.00263127,3100.5,3099.4,0.89561167]
[1767370869905,0.16401127,3100.5,3099.4,0.89561167]
[1767370870108,0.00263127,3100.5,3099.4,0.89561167]
[1767370870611,0.00484215,3100.3,3099.4,0.89561167]
[1767370870916,0.00484215,3100.3,3099.7,5.70691471]
[1767370871307,0.00263127,3100.5,3099.7,6.59768423]
[1767370871512,0.00263127,3100.5,3099.8,0.89076952]
[1767370872306,0.00747342,3100.5,3099.8,0.89076952]
[1767370872512,3.50879878,3101.6,3099.8,0.89076952]
[1767370872513,0.16132,3101.6,3099.8,0.89076952]
[1767370872912,0.16132,3101.6,3099.8,1.05218952]
[1767370873211,0.16129,3102.3,3100.1,1.05216952]
[1767370873418,0.16129,3102.3,3100.6,0.89076952]
[1767370873612,0.00484215,3101.8,3101.1,0.89561167]
[1767370873812,0.00484215,3101.8,3101.1,0.00484215]
[1767370874015,0.00484215,3101.8,3100.6,0.89338283]
[1767370874316,0.16132,3101.7,3100.7,5.70691471]
[1767370875009,0.16132,3101.7,3100.9,0.00484215]
[1767370875923,6.0,3101.7,3100.6,0.00261331]
[1767370876118,0.00484215,3101.8,3100.6,0.00261331]
[1767370876616,0.00484215,3101.8,3100.8,0.89076952]
[1767370876815,0.00484215,3101.8,3101.0,0.89561167]
[1767370877221,0.00306635,3102.3,3101.0,0.89561167]
[1767370877623,0.16435635,3102.3,3101.0,0.89561167]
[1767370877919,0.16129,3102.2,3101.0,0.89561167]
[1767370878124,0.1613,3102.1,3101.0,0.89561167]
[1767370878425,0.00484215,3101.9,3101.0,0.89561167]
[1767370879123,0.00306635,3102.3,3101.0,0.89561167]
[1767370880416,0.16125,3103.1,3101.0,0.89561167]
[1767370880926,0.0031826,3102.4,3101.0,0.89561167]
[1767370881422,0.16125,3103.1,3101.2,0.89076952]
[1767370881623,3.227,3103.8,3101.4,0.89076952]
[1767370881827,0.16122,3103.5,3101.4,1.05209952]
[1767370882423,0.16122,3103.5,3101.3,4.462]
[1767370882424,0.16484969,3103.5,3101.7,0.89076952]
[1767370883216,0.16484969,3103.5,3101.9,0.89076952]
[1767370883819,0.00362969,3103.5,3102.1,0.89076952]
[1767370884020,0.16119,3104.2,3102.1,1.05205952]
[1767370884227,0.1612,3103.9,3102.8,0.89560332]
[1767370884425,0.16122,3103.6,3102.8,0.89560332]
[1767370884727,0.16123,3103.5,3102.8,0.0048338]
[1767370885026,0.16123,3103.4,3102.8,0.00824722]
[1767370885325,0.16123,3103.4,3102.8,4.90537985]
[1767370885919,0.00399821,3103.5,3102.9,0.89076952]
[1767370886128,0.1612,3103.9,3102.9,0.89076952]
[1767370886327,3.226,3105.0,3103.3,4.53669263]
[1767370886527,0.16123,3103.5,3102.8,0.00824722]
[1767370886724,0.16123,3103.4,3102.8,0.00824722]
[1767370887029,0.16243846,3103.4,3102.8,0.00583895]
[1767370887422,0.16123,3103.3,3102.8,0.00583895]
[1767370887630,0.00120846,3103.4,3102.4,0.91300005]
[1767370887822,0.16125,3103.1,3102.4,0.91300005]
[1767370888022,0.16126,3102.8,3101.6,0.91300005]
[1767370888529,0.00480596,3102.5,3101.9,0.0048338]
[1767370888728,0.16126,3102.8,3101.9,0.92182615]
[1767370889027,0.16127,3102.7,3101.9,0.92182615]
[1767370889632,0.16127,3102.6,3101.9,0.92182615]
[1767370890225,0.16129,3102.3,3101.3,0.91300005]
[1767370890826,0.16129,3102.2,3101.3,0.91300005]
[1767370891126,3.226,3103.0,3100.8,0.91300005]
[1767370891326,0.16131,3101.9,3100.8,0.91689531]
[1767370892430,0.16131,3101.9,3101.0,0.91783385]
[1767370892822,0.0048338,3102.2,3101.0,0.91783385]
[1767370893128,0.16133,3101.5,3100.8,0.00389526]
[1767370893634,0.16133,3101.5,3100.8,0.91689531]
[1767370894229,0.16133,3101.5,3100.8,0.92172911]
[1767370894425,0.0048338,3102.2,3100.8,6.92172911]
[1767370894632,0.16126,3102.8,3100.8,0.92172911]
[1767370894839,0.16126,3102.8,3100.8,1.08308911]
[1767370895131,0.16123,3103.3,3101.2,0.91300005]
[1767370895339,0.16125,3103.1,3101.2,0.91300005]
[1767370895532,1.10902712,3103.0,3101.2,0.91300005]
[1767370895731,0.0048338,3102.4,3101.2,0.91300005]
[1767370896936,0.1613,3102.2,3101.2,0.91300005]
[1767370897342,0.0048338,3102.4,3100.8,0.00872906]
[1767370897538,0.94861977,3102.3,3100.8,0.00872906]
[1767370897828,0.16136,3101.0,3100.8,9.06e-06]
[1767370898235,0.16136,3100.9,3100.1,0.91300005]
[1767370898838,0.16502643,3100.9,3100.1,0.91686297]
[1767370899335,0.1662038,3100.8,3100.2,0.0048338]
[1767370899531,0.1662038,3100.8,3099.6,0.91300005]
[1767370899836,0.94925262,3100.7,3099.6,0.91300005]
[1767370900032,0.16138,3100.6,3099.6,0.91300005]
[1767370900335,0.0048338,3100.8,3099.6,0.91300005]
[1767370900535,0.0048338,3100.8,3100.0,0.91300005]
[1767370901747,0.16132,3101.8,3100.0,0.91300005]
[1767370901930,0.94940344,3101.7,3100.0,0.91300005]
[1767370902132,0.94940344,3101.6,3100.0,0.91300005]
[1767370902331,0.94940344,3101.5,3100.0,0.91300005]
[1767370902538,0.0048338,3101.1,3100.0,0.91300005]
[1767370903331,0.0022866,3101.5,3100.0,0.91300005]
[1767370906334,0.1636166,3101.5,3100.0,0.91300005]
[1767370906741,0.0396,3101.4,3100.0,0.91300005]
[1767370907840,0.1613,3102.1,3100.2,0.91300005]
[1767370908046,0.27768361,3102.6,3100.2,0.91300005]
[1767370908335,0.94491452,3102.5,3100.2,0.91300005]
[1767370908646,0.1613,3102.0,3100.2,0.91300005]
[1767370908944,0.16131,3101.9,3100.2,0.91300005]
[1767370909131,0.16132,3101.7,3100.2,0.91300005]
[1767370909330,0.00393988,3102.0,3100.2,0.91300005]
[1767370909643,0.16129,3102.3,3100.7,0.91300005]
[1767370910643,0.16531969,3102.3,3100.7,0.91300005]
[1767370911244,0.161,3102.2,3100.7,0.91300005]
[1767370912038,0.00402969,3102.3,3100.9,0.91300005]
[1767370912643,0.16126,3102.9,3101.0,0.91300005]
[1767370912842,0.16126,3102.9,3101.7,0.91300005]
[1767370913646,0.16370977,3102.9,3101.7,0.91300005]
[1767370915445,0.00244977,3102.9,3101.7,0.91300005]
[1767370915844,0.16123,3103.5,3101.7,0.91300005]
[1767370916547,0.16123,3103.5,3101.9,0.97938291]
[1767370916751,0.16123,3103.5,3101.9,0.98225868]
[1767370917746,1.23574541,3104.0,3101.9,0.98225868]
[1767370918048,0.94586524,3103.9,3101.9,0.98225868]
[1767370918352,0.16127,3102.7,3101.9,0.00287577]
[1767370918751,8.78274541,3103.5,3101.9,0.00287577]
[1767370919051,0.16128,3102.5,3101.9,0.00287577]
[1767370920843,7.546,3103.4,3101.9,0.00287577]
[1767370921049,0.16129,3102.3,3101.6,0.0048338]
[1767370921654,0.16123,3103.3,3101.6,0.98421671]
[1767370921952,0.16410577,3103.3,3101.6,0.98658198]
[1767370922353,0.16410577,3103.3,3101.6,1.14790198]
[1767370924043,0.00287577,3103.3,3101.8,0.97938291]
[1767370924347,0.16121,3103.8,3101.9,0.97938291]
[1767370924545,0.16121,3103.8,3102.6,0.97938291]
[1767370924947,1.23574541,3104.8,3102.6,0.97938291]
[1767370925151,0.16119,3104.2,3102.6,0.97938291]
[1767370925548,1.23574541,3104.8,3102.6,0.97938291]
[1767370925549,0.16119,3104.1,3102.6,0.97938291]
[1767370925857,0.1612,3104.0,3102.6,0.97938291]
[1767370926459,7.547,3105.1,3102.6,0.97938291]
[1767370926756,41.74404583,3105.0,3102.6,0.97938291]
[1767370927061,0.16118,3104.3,3102.6,0.97938291]
[1767370927554,0.16115,3104.9,3102.6,0.97938291]
[1767370927852,0.16115,3104.9,3102.9,0.97938291]
[1767370928258,0.16116,3104.7,3103.0,0.97938291]
[1767370928961,4.128,3106.0,3103.0,1.14063291]
[1767370929164,0.9427923,3105.9,3104.2,0.0048338]
[1767370929453,0.16113,3105.3,3104.2,0.98767616]
[1767370930052,0.16114,3105.2,3104.2,0.98767616]
[1767370930251,40.8,3106.1,3104.2,0.98767616]
[1767370930460,0.27141498,3106.3,3104.2,0.98767616]
[1767370930649,0.16112,3105.5,3104.2,0.98767616]
[1767370930848,0.16113,3105.4,3104.2,0.98767616]
[1767370931053,7.55,3106.4,3104.2,0.98767616]
[1767370931365,0.16108,3106.2,3104.4,0.97938291]
[1767370931551,0.16105,3106.8,3104.9,0.97938291]
[1767370931957,0.16105,3106.8,3105.6,0.97938291]
[1767370932262,0.16107,3106.5,3105.5,0.0048338]
[1767370932659,0.16107,3106.5,3105.5,0.98421671]
[1767370933360,0.16108,3106.4,3105.5,0.98421671]
[1767370933559,0.16108,3106.4,3104.4,1.23574541]
[1767370933560,0.1611,3105.9,3105.0,0.97938291]
[1767370934355,0.16111,3105.8,3105.0,0.97938291]
[1767370934656,0.1659438,3105.7,3105.1,0.0048338]
[1767370934856,0.16113,3105.3,3104.3,0.97938291]
[1767370935253,0.16114,3105.1,3104.3,0.97938291]
[1767370935860,0.16114,3105.1,3104.4,0.0048338]
[1767370936765,0.0048338,3105.7,3104.4,0.98421671]
[1767370938672,0.16112,3105.5,3104.4,0.98421671]
[1767370940965,0.0048338,3105.7,3104.4,0.98421671]
[1767370941271,0.16114,3105.1,3104.4,0.98421671]
[1767370941466,0.16115,3105.0,3104.4,0.0048338]
[1767370943466,0.0048338,3105.7,3103.9,0.97938291]
[1767370943778,0.0048338,3105.7,3103.3,0.97938291]
[1767370943779,0.16119,3104.2,3103.3,0.97938291]
[1767370944675,0.1612,3104.0,3103.4,0.0048338]
[1767370946069,0.1612,3103.9,3103.3,0.00260084]
[1767370947074,0.1612,3103.9,3103.3,0.00743464]
[1767370947773,0.0048338,3104.1,3103.3,0.93608296]
[1767370948366,0.00345945,3104.2,3103.3,0.93608296]
[1767370949270,0.0048338,3104.1,3103.3,0.93608296]
[1767370949576,0.16115,3105.0,3103.3,0.93608296]
[1767370949773,0.16115,3105.0,3103.3,0.93318296]
[1767370950876,0.0048338,3104.5,3103.3,0.93660015]
[1767370954384,0.00260084,3105.0,3103.5,1.08986832]
[1767370954583,0.00260084,3105.0,3103.7,0.92864832]
[1767370955184,0.0048338,3104.7,3103.7,0.92864832]
[1767370956085,0.16111,3105.8,3103.9,0.92864832]
[1767370956281,0.16108,3106.4,3104.4,0.92864832]
[1767370956481,0.94454539,3106.3,3104.7,0.92864832]
[1767370956781,3.223,3107.5,3105.2,0.92864832]
[1767370957080,1.61025571,3108.2,3106.0,0.93348212]
[1767370957081,0.16104,3107.0,3106.0,0.93348212]
[1767370957276,0.94436136,3106.9,3106.0,0.93659731]
[1767370957475,0.94381707,3106.8,3106.0,0.93659731]
[1767370957676,0.16104,3107.0,3106.0,0.93659731]
[1767370957976,0.16102,3107.5,3106.0,0.93659731]
[1767370958177,0.94372493,3107.4,3106.0,0.93659731]
[1767370958385,0.94372493,3107.3,3106.0,0.93659731]
[1767370958676,0.94372493,3107.2,3106.0,0.93659731]
[1767370958880,0.161,3107.9,3106.0,0.93659731]
[1767370959183,0.94293698,3107.8,3106.0,0.93659731]
[1767370959482,0.161,3107.9,3106.0,0.93659731]
[1767370959483,0.94293698,3107.7,3106.0,0.93659731]
[1767370959684,4.45874541,3108.7,3106.0,0.93659731]
[1767370959981,0.16101,3107.7,3106.0,0.93659731]
[1767370960173,0.161,3107.9,3106.0,0.93659731]
[1767370960373,1.10220598,3107.8,3106.0,0.93659731]
[1767370960574,0.161,3107.8,3106.0,0.93659731]
[1767370961287,0.161,3107.8,3106.2,0.92864832]
[1767370962285,1.23574541,3108.7,3106.2,0.92864832]
[1767370962286,0.16101,3107.7,3106.2,0.92864832]
[1767370962880,0.93998993,3107.6,3106.0,0.00794899]
[1767370963182,0.16105,3106.8,3106.0,0.00794899]
[1767370963384,0.16107,3106.6,3106.0,0.00794899]
[1767370963577,0.16107,3106.6,3105.6,0.92864832]
[1767370964380,1.23574541,3107.3,3105.1,0.92864832]
[1767370964583,0.16108,3106.4,3105.1,0.93238856]
[1767370964987,0.16108,3106.3,3105.1,0.93238856]
[1767370965386,0.0048338,3106.5,3105.1,0.93238856]
[1767370965575,0.16104,3107.0,3105.1,0.93238856]
[1767370965781,0.00311519,3107.3,3105.5,0.92864832]
[1767370966688,0.0048338,3106.7,3106.2,0.92864832]
[1767370966888,0.00311519,3107.3,3106.2,0.92864832]
[1767370967990,4.45774541,3108.7,3106.2,0.92864832]
[1767370968286,0.16099,3108.0,3106.2,0.92864832]
[1767370968877,0.161,3107.8,3106.2,0.92864832]
[1767370970888,0.16101,3107.7,3106.2,0.92864832]
[1767370972091,0.16101,3107.6,3106.2,0.92864832]
[1767370972295,0.38229902,3108.4,3106.2,0.92864832]
[1767370972493,0.16103,3107.3,3106.2,0.92864832]
[1767370973091,3.61329902,3108.4,3106.2,0.92864832]
[1767370973290,0.16101,3107.7,3106.2,0.92864832]
[1767370974491,0.16101,3107.6,3106.2,0.92864832]
[1767370974698,0.16102,3107.5,3106.2,0.92864832]
[1767370975091,0.16102,3107.4,3106.2,0.92864832]
[1767370975591,0.16103,3107.3,3106.2,0.92864832]
[1767370977390,0.16103,3107.2,3106.2,0.92864832]